bitfinex-derivatives/quotes_ETHF0:USTF0_20250518
["timestamp","ask_amount","ask_price","bid_price","bid_amount"]
[1747570855938,2.89843156,2497.8,2497.7,40.8]
[1747570856229,5.95643156,2497.8,2497.7,41.60046]
[1747570856427,5.95643156,2497.8,2497.7,9.25146]
[1747570856733,4.3765,2497.8,2497.7,9.25146]
[1747570856928,5.17693,2497.8,2497.7,9.25146]
[1747570857133,4.3765,2497.8,2497.7,9.25146]
[1747570857635,3.058,2497.8,2497.7,0.80046]
[1747570857833,4.4342,2497.8,2497.7,0.80046]
[1747570858035,4.4342,2497.8,2497.7,17.68446]
[1747570858332,1.3762,2497.8,2497.7,17.68446]
[1747570860835,1.3762,2497.8,2497.7,17.68146]
[1747570861136,1.3762,2497.8,2497.7,0.80046]
[1747570861742,1.3762,2497.8,2497.7,17.68146]
[1747570862334,4.4342,2497.8,2497.7,17.68146]
[1747570862534,4.4342,2497.8,2497.7,17.68046]
[1747570862734,6.80209202,2497.8,2497.7,17.68046]
[1747570863136,3.74409202,2497.8,2497.7,17.68046]
[1747570864741,2.36789202,2497.8,2497.7,17.68046]
[1747570865132,2.36789202,2497.8,2497.7,0.80046]
[1747570865332,2.36789202,2497.8,2497.7,17.67746]
[1747570865542,2.36789202,2497.8,2497.7,0.80046]
[1747570866142,2.94186805,2497.8,2497.7,17.67646]
[1747570868544,2.94186805,2497.8,2497.7,17.64746]
[1747570868736,2.94186805,2497.8,2497.7,0.80046]
[1747570868937,2.94186805,2497.8,2497.7,17.64746]
[1747570868938,1.58146805,2497.8,2497.7,17.64746]
[1747570869136,1.58146805,2497.8,2497.7,19.09526]
[1747570870042,1.58146805,2497.8,2497.7,23.41672398]
[1747570870238,1.58146805,2497.8,2497.7,6.56972398]
[1747570870543,1.58146805,2497.8,2497.6,2.18237]
[1747570870744,4.5971,2497.7,2497.6,0.80047]
[1747570870947,4.5971,2497.7,2497.6,17.64547]
[1747570871541,4.5971,2497.7,2497.6,19.05397]
[1747570871846,1.3893,2497.7,2497.6,19.05297]
[1747570872146,1.3893,2497.7,2497.6,17.64447]
[1747570872550,1.58146805,2497.8,2497.7,0.80046]
[1747570872748,2.36789202,2497.9,2497.6,21.364429]
[1747570872749,2.36789202,2497.9,2497.8,0.80043]
[1747570873446,2.36789202,2497.9,2497.8,2.19693]
[1747570874552,2.36789202,2497.9,2497.8,6.81717378]
[1747570875754,2.36789202,2497.9,2497.8,10.02497378]
[1747570876147,1.58169137,2498.0,2497.9,0.8004]
[1747570876454,1.58169137,2498.0,2497.9,3.6829]
[1747570876839,1.58169137,2498.0,2497.9,13.19758103]
[1747570877247,0.77283137,2498.0,2497.9,13.19758103]
[1747570877756,1.37e-06,2498.0,2497.9,13.19758103]
[1747570878058,1.37e-06,2498.0,2497.9,25.03458103]
[1747570879453,1.37e-06,2498.0,2497.9,30.03458103]
[1747570879648,0.98829111,2498.1,2498.0,0.80037]
[1747570879857,0.98829111,2498.1,2498.0,2.12457]
[1747570880155,0.98829111,2498.1,2498.0,6.36590943]
[1747570880452,2.51283543,2498.4,2498.3,0.80027]
[1747570880657,1.1850515,2498.4,2498.3,17.63427]
[1747570881251,1.1850515,2498.4,2498.3,5.35746669]
[1747570881456,2.5059515,2498.4,2498.3,22.18946669]
[1747570881758,1.1850515,2498.4,2498.3,22.18946669]
[1747570882353,2.17334261,2498.6,2498.5,0.80021]
[1747570882653,2.17334261,2498.6,2498.5,8.32045482]
[1747570883061,2.17334261,2498.6,2498.5,9.65385482]
[1747570884379,2.17334261,2498.6,2498.5,50.45385482]
[1747570885069,0.01246111,2498.6,2498.5,82.35185482]
[1747570885274,1.11e-06,2498.6,2498.5,82.35185482]
[1747570885776,0.41529688,2498.8,2498.7,0.80014]
[1747570886374,0.41529688,2498.8,2498.7,45.95015229]
[1747570886573,0.41529688,2498.8,2498.7,47.34325229]
[1747570887078,1.1850515,2499.1,2499.0,0.80005]
[1747570887270,1.1850515,2499.1,2499.0,17.62505]
[1747570887469,1.1850515,2499.1,2499.0,21.88147823]
[1747570889176,1.3143,2499.3,2499.2,0.79998]
[1747570891181,4.3723,2499.3,2499.2,17.61898]
[1747570892579,4.3723,2499.3,2499.2,17.61698]
[1747570894284,4.46448003,2499.3,2499.2,17.61698]
[1747570897685,4.46448003,2499.3,2499.2,0.79998]
[1747570897874,4.46448003,2499.3,2499.2,17.61098]
[1747570900587,4.46448003,2499.3,2499.2,21.81957809]
[1747570900789,4.46448003,2499.3,2499.2,22.13383075]
[1747570900991,4.46448003,2499.3,2499.2,21.81957809]
[1747570901180,1.40648003,2499.3,2499.2,23.22187809]
[1747570901985,1.40648003,2499.3,2499.2,64.02187809]
[1747570902289,1.40648003,2499.3,2499.2,62.61957809]
[1747570902787,1.40648003,2499.3,2499.2,62.58457809]
[1747570903991,1.40648003,2499.3,2499.2,62.58357809]
[1747570904194,4.46448003,2499.3,2499.2,62.58357809]
[1747570904390,4.46448003,2499.3,2499.2,62.58257809]
[1747570904994,4.46448003,2499.3,2499.2,45.80857809]
[1747570905184,1.40648003,2499.3,2499.2,62.58157809]
[1747570905893,1.40648003,2499.3,2499.2,45.80857809]
[1747570906083,1.40648003,2499.3,2499.2,62.58157809]
[1747570907090,1.40648003,2499.3,2499.2,45.80857809]
[1747570907291,1.40648003,2499.3,2499.2,62.57957809]
[1747570909791,1.40648003,2499.3,2499.2,64.02167809]
[1747570911290,1.40648003,2499.3,2499.2,47.25067809]
[1747570911485,1.40648003,2499.3,2499.2,62.57557809]
[1747570912282,4.46448003,2499.3,2499.2,62.57557809]
[1747570913195,1.40648003,2499.3,2499.2,62.57557809]
[1747570913386,1.40648003,2499.3,2499.2,64.00377809]
[1747570914295,3e-08,2499.3,2499.2,64.00377809]
[1747570916089,3e-08,2499.3,2499.2,63.99877809]
[1747570917197,3e-08,2499.3,2499.2,47.23677809]
[1747570917392,3e-08,2499.3,2499.2,62.56957809]
[1747570918095,3.05800003,2499.3,2499.2,62.56957809]
[1747570919696,3.05800003,2499.3,2499.2,45.80857809]
[1747570919889,4.46760003,2499.3,2499.2,62.56657809]
[1747570920298,9.46760003,2499.3,2498.9,1.59712437]
[1747570920485,3.2078,2499.0,2498.9,1.59712437]
[1747570920686,3.2078,2499.0,2498.9,2.39720437]
[1747570920890,8.2078,2499.0,2498.9,2.39720437]
[1747570921297,12.6754,2499.0,2498.9,1.59712437]
[1747570921491,12.6754,2499.0,2498.8,8.389]
[1747570921795,2.2097,2498.9,2498.8,8.389]
[1747570922196,10.2677,2498.9,2498.8,8.389]
[1747570922497,9.4676,2498.9,2498.8,9.18911]
[1747570922996,9.4676,2498.9,2498.8,9.19011]
[1747570925994,11.04706326,2498.9,2498.8,9.19011]
[1747570927001,6.04706326,2498.9,2498.8,9.19011]
[1747570928104,6.04706326,2498.9,2498.8,8.39]
[1747570928297,6.84714326,2498.9,2498.8,8.39]
[1747570928496,6.04706326,2498.9,2498.8,9.19011]
[1747570928699,6.04706326,2498.9,2498.8,8.39]
[1747570929102,6.84714326,2498.9,2498.8,8.39]
[1747570929306,6.04706326,2498.9,2498.8,9.19011]
[1747570931193,2.98906326,2498.9,2498.8,9.19011]
[1747570931706,2.20968,2498.9,2498.8,9.19011]
[1747570932208,2.20968,2498.9,2498.8,8.39]
[1747570932505,2.20968,2498.9,2498.8,8.361]
[1747570933005,8.40982,2498.9,2498.1,2.00083]
[1747570933199,3.2078,2498.3,2498.2,17.5203]
[1747570933396,3.2078,2498.6,2498.5,0.80021]
[1747570933592,4.00797,2498.6,2498.5,9.16121]
[1747570934001,5.45097,2498.6,2498.5,9.16121]
[1747570934206,7.7088,2498.6,2498.5,9.16121]
[1747570934606,8.50898,2498.6,2498.5,8.361]
[1747570935812,9.69234353,2498.6,2498.5,8.361]
[1747570936310,0.80022,2498.5,2498.2,1.3941]
[1747570936519,4.5347,2498.5,2498.4,0.80022]
[1747570937606,3.2078,2498.5,2498.4,0.80022]
[1747570937801,3.2078,2498.5,2498.4,3.60302]
[1747570938009,3.2078,2498.5,2498.4,4.92272]
[1747570939124,3.2078,2498.5,2498.4,20.31902]
[1747570939513,0.66008837,2498.8,2498.7,0.80014]
[1747570939815,0.66008837,2498.8,2498.7,9.16214]
[1747570940407,0.66008837,2498.8,2498.7,10.49894]
[1747570941911,0.66008837,2498.8,2498.7,14.83254262]
[1747570946317,1.3813,2499.0,2498.9,0.80008]
[1747570946619,1.3813,2499.0,2498.9,9.14808]
[1747570946814,1.3813,2499.0,2498.9,9.14010231]
[1747570947320,4.4393,2499.0,2498.9,10.49760231]
[1747570947818,4.4393,2499.0,2498.9,10.49460231]
[1747570950820,4.4393,2499.0,2498.9,2.14960231]
[1747570951412,4.4393,2499.0,2498.9,18.85260231]
[1747570951923,5.62266353,2499.0,2498.9,18.85260231]
[1747570952117,5.62266353,2499.0,2498.9,8.361]
[1747570952317,5.62266353,2499.0,2498.9,9.16108]
[1747570952522,4.24136353,2499.0,2498.9,9.16108]
[1747570952721,4.24136353,2499.0,2498.9,10.50688]
[1747570954222,1.18336353,2499.0,2498.9,10.50688]
[1747570955217,4.24136353,2499.0,2498.9,10.50688]
[1747570957422,5.64296353,2499.0,2498.9,10.50688]
[1747570960228,4.24136353,2499.0,2498.9,15.02432596]
[1747570961226,1.27554356,2499.0,2498.9,15.02432596]
[1747570961925,1.27554356,2499.0,2498.9,6.66332596]
[1747570962126,4.33354356,2499.0,2498.9,23.32532596]
[1747570963122,1.27554356,2499.0,2498.9,23.32532596]
[1747570963428,0.09218003,2499.0,2498.9,23.32532596]
[1747570967430,0.09218003,2499.0,2498.9,64.12532596]
[1747570968431,0.09218003,2499.0,2498.9,64.11932596]
[1747570973936,0.09218003,2499.0,2498.9,55.79432596]
[1747570974235,0.09218003,2499.0,2498.9,64.11332596]
[1747570974536,0.09218003,2499.0,2498.9,46.11752596]
[1747570974733,0.09218003,2499.0,2498.9,21.96652596]
[1747570974928,1.53048003,2499.0,2498.9,21.96652596]
[1747570975131,6.00818003,2499.0,2498.9,21.96652596]
[1747570977126,6.00818003,2499.0,2498.9,23.37372596]
[1747570977330,2.95018003,2499.0,2498.9,23.37372596]
[1747570977928,0.09218003,2499.0,2498.9,23.37372596]
[1747570978640,0.09218003,2499.0,2498.9,64.17372596]
[1747570980232,0.09218003,2499.0,2498.9,47.52472596]
[1747570980432,0.09218003,2499.0,2498.9,64.16872596]
[1747570981236,1.50148003,2499.0,2498.9,64.16872596]
[1747570983644,2.92578003,2499.0,2498.9,64.16872596]
[1747570984152,5.98378003,2499.0,2498.9,64.16872596]
[1747570985145,2.92578003,2499.0,2498.9,64.16872596]
[1747570986146,5.98378003,2499.0,2498.9,64.16872596]
[1747570987343,2.92578003,2499.0,2498.9,64.16872596]
[1747570987545,2.92578003,2499.0,2498.9,5.31752596]
[1747570987742,2.92578003,2499.0,2498.9,17.43708]
[1747570988243,5.98378003,2499.0,2498.9,17.43708]
[1747570988454,7.16714356,2499.0,2498.9,22.07405987]
[1747570989149,4.10914356,2499.0,2498.9,22.07405987]
[1747570989447,1.27554356,2499.0,2498.9,22.07405987]
[1747570990041,2.61904356,2499.0,2498.9,22.07405987]
[1747570991651,1.27554356,2499.0,2498.9,23.45245987]
[1747570991850,1.27554356,2499.0,2498.9,24.77765987]
[1747570992150,0.09218003,2499.0,2498.9,24.77765987]
[1747570993043,0.09218003,2499.0,2498.9,65.57765987]
[1747570994552,0.09218003,2499.0,2498.9,57.27165987]
[1747570994854,0.09218003,2499.0,2498.9,65.57165987]
[1747570996352,2.569425,2499.3,2498.9,69.97955987]
[1747570996551,2.569425,2499.3,2499.2,0.79998]
[1747570997050,2.569425,2499.3,2499.2,5.13861139]
[1747570997451,2.569425,2499.3,2499.2,6.51651139]
[1747570998459,1.57946326,2499.3,2499.2,6.51651139]
[1747570999059,2.7393,2499.4,2499.3,0.79995]
[1747570999260,2.7393,2499.4,2499.3,18.75515]
[1747570999562,2.7393,2499.4,2499.3,23.10788732]
[1747570999952,0.16102174,2499.5,2499.4,0.79992]
[1747571000157,0.16102174,2499.5,2499.4,18.75412]
[1747571000352,0.16102174,2499.5,2499.4,23.07419881]
[1747571000559,0.16102174,2499.5,2499.4,63.87419881]
[1747571001660,1.74e-06,2499.5,2499.4,63.87419881]
[1747571001864,1.74e-06,2499.5,2499.4,47.27819881]
[1747571002054,1.74e-06,2499.5,2499.4,63.87119881]
[1747571002358,1.4627,2499.8,2499.5,1.99971]
[1747571002559,1.4027,2499.7,2499.6,2.16905]
[1747571002758,1.4027,2499.7,2499.6,6.34604847]
[1747571005764,1.4027,2499.7,2499.6,17.38985]
[1747571006160,4.4607,2499.7,2499.6,17.38985]
[1747571007457,4.4607,2499.7,2499.6,0.79985]
[1747571007763,4.4607,2499.7,2499.6,17.38785]
[1747571007962,4.4607,2499.7,2499.6,17.38685]
[1747571011152,4.4607,2499.7,2499.6,0.79985]
[1747571011356,4.4607,2499.7,2499.6,17.38385]
[1747571014866,4.55288003,2499.7,2499.6,17.38385]
[1747571017368,4.55288003,2499.7,2499.6,17.37785]
[1747571018969,4.55288003,2499.7,2499.6,17.37685]
[1747571019357,4.55288003,2499.7,2499.6,17.37585]
[1747571020773,4.55288003,2499.7,2499.6,0.79985]
[1747571021074,4.55288003,2499.7,2499.6,17.37485]
[1747571021772,6.13234329,2499.7,2499.6,17.37485]
[1747571025966,6.04016326,2499.7,2499.6,17.37485]
[1747571027081,6.13234329,2499.7,2499.6,17.37485]
[1747571029280,4.72964329,2499.7,2499.6,21.91117051]
[1747571030169,1.67164329,2499.7,2499.6,21.91117051]
[1747571030577,0.09218003,2499.7,2499.6,21.91117051]
[1747571037590,0.09218003,2499.7,2499.6,23.29757051]
[1747571040592,0.09218003,2499.7,2499.6,6.72257051]
[1747571040885,1.45968003,2499.7,2499.6,23.25257051]
[1747571041092,5.89288003,2499.7,2499.6,21.86617051]
[1747571042493,5.89288003,2499.7,2499.6,17.32785]
[1747571043091,3.15018003,2499.7,2499.6,23.16033578]
[1747571043298,3.2078,2499.8,2499.7,0.79982]
[1747571043594,3.2078,2499.8,2499.7,2.19382]
[1747571044293,3.2078,2499.8,2499.7,3.57882]
[1747571044496,3.2078,2499.8,2499.7,7.96519026]
[1747571045389,3.29998003,2499.8,2499.7,7.96519026]
[1747571051401,4.64018003,2499.8,2499.7,7.96519026]
[1747571052201,0.09218003,2499.8,2499.7,7.96519026]
[1747571052501,1.57946326,2499.9,2499.8,0.79979]
[1747571052698,1.57946326,2499.9,2499.8,2.22579]
[1747571052902,1.57946326,2499.9,2499.8,6.46656203]
[1747571053902,4.548,2500.1,2500.0,0.79973]
[1747571054206,4.548,2500.1,2500.0,17.28973]
[1747571054703,4.548,2500.1,2500.0,21.88369028]
[1747571057102,4.548,2500.1,2500.0,5.39369028]
[1747571057315,7.606,2500.1,2500.0,21.88069028]
[1747571059007,7.606,2500.1,2500.0,21.87869028]
[1747571059202,4.548,2500.1,2500.0,21.87869028]
[1747571059404,4.64018003,2500.1,2500.0,21.87869028]
[1747571060207,7.69818003,2500.1,2500.0,21.87869028]
[1747571062209,7.69818003,2500.1,2500.0,21.87569028]
[1747571062811,7.69818003,2500.1,2500.0,21.87469028]
[1747571064507,7.69818003,2500.1,2500.0,5.39369028]
[1747571064711,7.69818003,2500.1,2500.0,21.87169028]
[1747571070217,4.49038003,2500.1,2500.0,21.87169028]
[1747571071417,4.49038003,2500.1,2500.0,23.23799028]
[1747571073615,5.68308218,2500.1,2500.0,23.23799028]
[1747571076524,6.06984329,2500.1,2500.0,23.23799028]
[1747571078722,6.06984329,2500.1,2500.0,15.00399028]
[1747571078919,9.27764329,2500.1,2500.0,9.04373]
[1747571079113,9.27764329,2500.1,2500.0,0.79973]
[1747571079313,9.27764329,2500.1,2500.0,17.26473]
[1747571079725,9.27764329,2500.1,2500.0,0.79973]
[1747571080027,9.27764329,2500.1,2500.0,17.26373]
[1747571080329,9.27764329,2500.1,2500.0,9.04373]
[1747571080524,9.27764329,2500.1,2500.0,17.26273]
[1747571083428,7.69818003,2500.1,2500.0,17.26273]
[1747571085031,7.82567038,2500.1,2500.0,0.79973]
[1747571085227,7.82567038,2500.1,2500.0,9.01573]
[1747571085430,8.62537038,2500.1,2500.0,9.01573]
[1747571086127,7.82567038,2500.1,2500.0,9.01573]
[1747571087027,8.62537038,2500.1,2500.0,9.01573]
[1747571089028,8.62537038,2500.1,2500.0,17.22773]
[1747571089229,0.79976,2500.0,2499.9,0.79973]
[1747571089430,2.24166,2500.0,2499.9,17.22773]
[1747571090238,5.29966,2500.0,2499.9,17.22773]
[1747571090736,5.29966,2500.0,2499.9,0.79973]
[1747571090938,0.7998,2499.9,2499.8,0.79977]
[1747571091138,6.6809,2499.9,2499.8,9.01577]
[1747571092236,5.8811,2499.9,2499.8,9.01577]
[1747571092738,8.26838666,2499.9,2499.8,9.01577]
[1747571094148,8.39587701,2499.9,2499.8,9.01577]
[1747571095349,8.39587701,2499.9,2499.8,0.79977]
[1747571095545,8.39587701,2499.9,2499.8,17.22277]
[1747571096249,9.19563701,2499.9,2499.8,17.22277]
[1747571096445,9.19563701,2499.9,2499.8,16.423]
[1747571096641,9.19563701,2499.9,2499.8,0.79979]
[1747571096840,0.7998,2499.8,2499.5,28.88068]
[1747571097038,5.9923,2499.8,2499.7,0.79979]
[1747571097243,9.0503,2499.8,2499.7,0.79979]
[1747571097650,9.0503,2499.8,2499.7,17.22079]
[1747571098851,10.64154146,2499.8,2499.7,17.22079]
[1747571099242,10.64154146,2499.8,2499.7,0.79979]
[1747571099645,10.64154146,2499.8,2499.7,17.21979]
[1747571100350,10.64154146,2499.8,2499.7,0.79979]
[1747571100553,0.79984,2499.7,2499.5,26.881]
[1747571100752,1.3767,2499.6,2499.5,27.68089]
[1747571100949,2.7268,2499.6,2499.5,35.89789]
[1747571101251,5.7848,2499.6,2499.5,35.89789]
[1747571101852,7.37604146,2499.6,2499.5,35.89789]
[1747571102053,7.37604146,2499.6,2499.5,37.36169]
[1747571102247,4.64924146,2499.6,2499.5,35.89789]
[1747571102449,7.47124146,2499.6,2499.5,35.89789]
[1747571103755,4.64924146,2499.6,2499.5,35.89789]
[1747571103956,4.64924146,2499.6,2499.5,37.26279]
[1747571104156,1.59124146,2499.6,2499.5,38.72659]
[1747571104654,1.19232453,2499.6,2499.5,42.90891682]
[1747571107661,2.28320683,2499.7,2499.6,0.79986]
[1747571107850,2.28320683,2499.7,2499.6,2.18926]
[1747571109160,5.34120683,2499.7,2499.6,2.18926]
[1747571110257,4.34250456,2499.7,2499.6,2.18926]
[1747571110761,4.74142149,2499.7,2499.6,2.18926]
[1747571118069,3.81500968,2499.7,2499.6,2.18926]
[1747571121773,5.00832377,2499.7,2499.6,6.66706463]
[1747571122274,1.95032377,2499.7,2499.6,6.66706463]
[1747571122871,1.28549412,2499.7,2499.6,6.66706463]
[1747571123174,1.28549412,2499.7,2499.6,47.46706463]
[1747571127077,0.09218003,2499.7,2499.6,48.6639298]
[1747571128176,3e-08,2499.7,2499.6,48.6639298]
[1747571130873,3e-08,2499.7,2499.6,56.8379298]
[1747571132373,3e-08,2499.7,2499.6,47.46706463]
[1747571132579,3e-08,2499.7,2499.6,63.82706463]
[1747571133381,1.40370003,2499.7,2499.6,63.82606463]
[1747571134483,1.40370003,2499.7,2499.6,47.46706463]
[1747571134679,1.40370003,2499.7,2499.6,63.82506463]
[1747571135381,1.40370003,2499.7,2499.6,47.46706463]
[1747571135682,1.40370003,2499.7,2499.6,63.82406463]
[1747571135883,1.40370003,2499.7,2499.6,47.46706463]
[1747571136184,1.40370003,2499.7,2499.6,63.82306463]
[1747571136875,3e-08,2499.7,2499.6,63.82306463]
[1747571140776,3e-08,2499.7,2499.6,67.03086463]
[1747571144793,3e-08,2499.7,2499.6,68.62714846]
[1747571148193,3e-08,2499.7,2499.6,68.61614846]
[1747571148383,1.33010003,2499.7,2499.6,68.61614846]
[1747571149086,3e-08,2499.7,2499.6,68.61614846]
[1747571157806,0.52379006,2499.7,2499.6,68.61614846]
[1747571158103,3e-08,2499.7,2499.6,68.61614846]
[1747571159208,3e-08,2499.7,2499.6,52.27114846]
[1747571159409,3e-08,2499.7,2499.6,68.57814846]
[1747571159812,3e-08,2499.7,2499.6,52.27114846]
[1747571160114,3e-08,2499.7,2499.6,68.57814846]
[1747571165510,3e-08,2499.8,2499.7,0.79982]
[1747571165711,1.3535,2499.9,2499.8,0.79979]
[1747571166107,1.3535,2499.9,2499.8,46.04497349]
[1747571167305,1.3535,2499.9,2499.8,47.43177349]
[1747571167608,3.38598893,2500.3,2500.2,0.79966]
[1747571167814,3.38598893,2500.3,2500.2,17.09966]
[1747571168006,3.38598893,2500.3,2500.2,21.34785216]
[1747571168206,6.44398893,2500.3,2500.2,5.04885216]
[1747571168414,6.44398893,2500.3,2500.2,21.34785216]
[1747571170318,3.38598893,2500.3,2500.2,21.34785216]
[1747571170712,2.38728666,2500.3,2500.2,21.34785216]
[1747571171009,2.42690227,2500.4,2500.3,0.79963]
[1747571171208,0.99870227,2500.4,2500.3,0.79963]
[1747571171411,0.99870227,2500.4,2500.3,5.02343715]
[1747571172914,2.40130227,2500.4,2500.3,5.02343715]
[1747571173810,2.40130227,2500.4,2500.3,5.33838885]
[1747571174316,2.40130227,2500.4,2500.3,5.02343715]
[1747571175719,2.40130227,2500.4,2500.3,6.46443715]
[1747571176715,0.99870227,2500.4,2500.3,14.59643715]
[1747571177018,2.27e-06,2500.4,2500.3,19.53313828]
[1747571177210,2.27e-06,2500.4,2500.3,20.92033828]
[1747571177414,2.72640589,2500.7,2500.6,0.79954]
[1747571177722,2.72640589,2500.7,2500.6,13.11872102]
[1747571178014,1.4084,2500.7,2500.6,13.11872102]
[1747571178714,0.99782013,2500.8,2500.7,0.7995]
[1747571178915,0.99782013,2500.8,2500.7,10.3423]
[1747571179113,4.05582013,2500.8,2500.7,14.75001781]
[1747571179924,4.05582013,2500.8,2500.7,16.09391781]
[1747571180322,0.99782013,2500.8,2500.7,16.09391781]
[1747571180923,2.42622013,2500.8,2500.7,16.09391781]
[1747571182521,3.2078,2501.2,2500.9,0.79944]
[1747571182713,3.93931401,2501.9,2501.4,0.79928]
[1747571182918,2.22279538,2501.9,2501.8,0.79915]
[1747571183219,2.22279538,2501.9,2501.8,62.32049862]
[1747571183624,2.22279538,2501.9,2501.8,65.10479862]
[1747571183822,2.22279538,2501.9,2501.8,48.84879862]
[1747571184023,2.22279538,2501.9,2501.8,65.10079862]
[1747571184223,1.37006538,2501.9,2501.8,65.10079862]
[1747571185230,7.87862802,2502.0,2501.9,0.79912]
[1747571185522,7.87862802,2502.0,2501.9,6.62095691]
[1747571186526,1.3992,2502.2,2502.1,0.79906]
[1747571186824,1.3992,2502.2,2502.1,4.96960846]
[1747571187922,2.0978709,2502.3,2502.2,0.79902]
[1747571188122,2.0978709,2502.3,2502.2,18.38192]
[1747571188312,2.0978709,2502.3,2502.2,22.87737626]
[1747571189028,3.5340709,2502.3,2502.2,22.87737626]
[1747571189227,6.5920709,2502.3,2502.2,22.87737626]
[1747571191224,4.4942,2502.3,2502.2,13.42147626]
[1747571191414,4.4942,2502.3,2502.2,4.49545626]
[1747571191722,9.4942,2502.3,2501.9,16.242]
[1747571192024,3.2078,2502.1,2501.6,8.127]
[1747571192226,3.2078,2501.8,2501.5,8.127]
[1747571192421,2.8049,2501.7,2501.5,8.92622]
[1747571192625,2.8049,2501.7,2501.5,8.92623]
[1747571192818,8.6041,2501.7,2501.5,8.127]
[1747571193019,7.8049,2501.7,2501.6,0.79922]
[1747571193223,0.79923,2501.6,2501.4,10.12532038]
[1747571193417,1.384,2501.5,2501.4,1.19906038]
[1747571193727,0.79928,2501.4,2501.3,1.59628383]
[1747571193919,9.5918,2501.5,2500.7,3.2078]
[1747571194119,3.2078,2501.2,2501.1,0.79938]
[1747571194327,3.2078,2501.2,2500.7,3.2078]
[1747571194527,3.2078,2500.9,2500.8,0.79946]
[1747571195030,8.2078,2500.9,2500.8,0.79946]
[1747571195231,11.2658,2500.9,2500.8,0.79946]
[1747571196930,8.058,2500.9,2500.8,0.79946]
[1747571197229,3.058,2500.9,2500.8,8.92746]
[1747571199131,3.058,2500.9,2500.8,8.128]
[1747571199633,3.058,2500.9,2500.8,8.92747]
[1747571201036,3.058,2500.9,2500.8,8.128]
[1747571202434,4.4399,2500.9,2500.8,8.128]
[1747571202732,4.4399,2500.9,2500.8,8.92747]
[1747571202933,4.4399,2500.9,2500.8,8.128]
[1747571203333,5.23934,2500.9,2500.8,8.128]
[1747571203730,10.23934,2500.9,2500.8,8.128]
[1747571203923,0.79951,2500.7,2500.5,2.13885]
[1747571204127,2.18145,2500.6,2500.4,0.79958]
[1747571204336,2.18145,2500.6,2500.5,17.03857]
[1747571204636,2.18145,2500.6,2500.4,6.4264559]
[1747571204932,2.18145,2500.6,2500.5,16.239]
[1747571205137,4.4399,2500.6,2500.5,17.03857]
[1747571205334,5.23944,2500.6,2500.5,0.79957]
[1747571205528,5.23944,2500.6,2500.5,17.03957]
[1747571205731,5.23944,2500.6,2500.5,8.13]
[1747571205929,13.44724,2500.6,2500.5,8.13]
[1747571206132,14.64662,2500.6,2500.0,4.5364]
[1747571206439,0.79966,2500.2,2500.1,8.13]
[1747571207232,3.85766,2500.2,2500.1,8.13]
[1747571207737,0.7997,2500.1,2500.0,8.109]
[1747571207935,1.4377,2500.1,2499.7,3.2078]
[1747571208236,0.79978,2499.9,2499.7,4.00759]
[1747571208435,3.058,2500.1,2500.0,0.79973]
[1747571208631,3.058,2500.1,2500.0,20.22653]
[1747571209237,3.058,2500.1,2500.0,17.01873]
[1747571209929,3.8577,2500.1,2500.0,16.219]
[1747571210136,3.058,2500.1,2500.0,16.219]
[1747571210332,3.058,2500.1,2500.0,17.6185]
[1747571210538,3.15018003,2500.1,2500.0,18.41823]
[1747571211736,3.15018003,2500.1,2500.0,26.09646133]
[1747571214141,0.09218003,2500.1,2500.0,26.09646133]
[1747571216441,3.2078,2500.6,2500.5,0.79957]
[1747571216741,2.8113,2501.0,2500.7,0.7995]
[1747571217135,5.8693,2501.0,2500.8,2.10575]
[1747571217339,5.8693,2501.0,2500.8,1.3063]
[1747571217538,5.8693,2501.0,2500.9,0.79944]
[1747571217739,3.058,2501.0,2500.9,8.91044]
[1747571222837,3.058,2501.0,2500.9,17.01444]
[1747571223634,3.058,2501.0,2500.9,21.58179979]
[1747571223835,3.058,2501.0,2500.9,22.95219979]
[1747571224247,1.58092946,2501.3,2501.2,0.79934]
[1747571224942,1.67310949,2501.3,2501.2,0.79934]
[1747571225138,4.73110949,2501.3,2501.2,0.79934]
[1747571225546,3.15018003,2501.3,2501.2,0.79934]
[1747571226946,3.15018003,2501.3,2501.2,8.90134]
[1747571230855,3.15018003,2501.3,2501.2,13.12252778]
[1747571231352,0.09218003,2501.3,2501.2,13.12252778]
[1747571231549,1.58092946,2501.7,2501.6,0.79922]
[1747571231749,1.3173,2501.9,2501.8,0.79915]
[1747571232043,4.31532946,2502.1,2501.7,1.4236]
[1747571232349,3.058,2501.9,2501.8,0.79915]
[1747571233555,8.058,2501.9,2501.4,3.2078]
[1747571233743,1.3214,2501.8,2501.7,0.79918]
[1747571234245,9.3794,2501.8,2501.7,0.79918]
[1747571235945,3.058,2501.8,2501.7,0.79918]
[1747571236149,3.058,2501.8,2501.7,4.76218]
[1747571237655,3.058,2501.8,2501.7,12.85918]
[1747571238458,3.058,2501.8,2501.7,4.76218]
[1747571238655,3.058,2501.8,2501.7,20.95518]
[1747571240061,3.15018003,2501.8,2501.7,20.95518]
[1747571242363,3.15018003,2501.8,2501.7,18.30348]
[1747571249270,3.94933003,2501.8,2501.7,8.096]
[1747571249762,7.15713003,2501.8,2501.7,8.89518]
[1747571250970,7.15713003,2501.8,2501.7,0.79918]
[1747571252871,9.5290379,2501.8,2501.7,0.79918]
[1747571253072,0.79918,2501.7,2501.6,8.89521]
[1747571253273,3.46858,2501.7,2501.6,8.096]
[1747571253772,3.46858,2501.7,2501.6,8.89522]
[1747571254266,6.52658,2501.7,2501.6,8.89522]
[1747571254675,5.7274,2501.7,2501.6,8.89522]
[1747571255066,6.52658,2501.7,2501.6,8.89522]
[1747571255267,6.52658,2501.7,2501.6,8.88821449]
[1747571255468,5.21908,2501.7,2501.6,8.88821449]
[1747571256175,6.90328237,2501.7,2501.6,8.88821449]
[1747571258375,0.79922,2501.6,2501.5,8.096]
[1747571258579,3.61212,2501.6,2501.5,8.096]
[1747571258775,5.20414234,2501.6,2501.5,8.096]
[1747571258977,5.20414234,2501.6,2501.5,9.4708]
[1747571259172,8.26214234,2501.6,2501.5,9.4708]
[1747571259371,8.26214234,2501.6,2501.5,10.27005]
[1747571260080,4.65002234,2501.6,2501.5,10.27005]